{"text_format":"3","workbook":"xlsx","n_sheets":1,"sheets":["血压和血糖"],"not_rendered":{"defined_names":9},"read":"whole","date_system":"1900"}

{"sheet":"血压和血糖","index":0,"n_rows":13,"n_cols":11,"rows_kept":13,"merged":[[0,1,4,3],[0,4,0,9],[1,4,1,6],[1,7,1,9],[3,7,4,7],[3,8,4,8],[3,9,4,9]]}
[null,"血压\n跟踪表",null,null,"在下方单元格 E2 到 J5 自定义阈值。"]
[{"$nulls":4},"血压",null,null,"血糖范围"]
[{"$nulls":4},120,"收缩压",140,70,100,150]
[{"$nulls":4},80,"舒张压",90,"低","正常","高"]
[{"$nulls":4},"目标血压",null,"呼叫医师"]
[null,"日期","时间","事件","收缩压","舒张压","心率","血糖","水平","状态","备注"]
[null,{"$f":"TODAY()","v":"2018-07-04"},"06:00:00","起床",129,79,72,55,{"$f":"BloodPressureAndGlucose[[#This Row],[血糖]]","v":55},{"$f":"IFERROR(IF(BloodPressureAndGlucose[[#This Row],[水平]]=0,\"\",IF(BloodPressureAndGlucose[[#This Row],[水平]]<=GLow,\"低\",IF(AND(BloodPressureAndGlucose[[#This Row],[水平]]>GLow,BloodPressureAndGlucose[[#This Row],[水平]]<GHigh),\"正常\",\"高\"))), \"\")","v":"低"}]
[null,{"$f":"TODAY()","v":"2018-07-04"},"07:00:00","餐前",120,80,74,70,{"$f":"BloodPressureAndGlucose[[#This Row],[血糖]]","v":70},{"$f":"IFERROR(IF(BloodPressureAndGlucose[[#This Row],[水平]]=0,\"\",IF(BloodPressureAndGlucose[[#This Row],[水平]]<=GLow,\"低\",IF(AND(BloodPressureAndGlucose[[#This Row],[水平]]>GLow,BloodPressureAndGlucose[[#This Row],[水平]]<GHigh),\"正常\",\"高\"))), \"\")","v":"低"}]
[null,"2018-07-04","09:00:00","餐后",133,80,75,75,{"$f":"BloodPressureAndGlucose[[#This Row],[血糖]]","v":75},{"$f":"IFERROR(IF(BloodPressureAndGlucose[[#This Row],[水平]]=0,\"\",IF(BloodPressureAndGlucose[[#This Row],[水平]]<=GLow,\"低\",IF(AND(BloodPressureAndGlucose[[#This Row],[水平]]>GLow,BloodPressureAndGlucose[[#This Row],[水平]]<GHigh),\"正常\",\"高\"))), \"\")","v":"正常"}]
[null,"2018-07-04","10:00:00","仅血压",143,91,75,190,{"$f":"BloodPressureAndGlucose[[#This Row],[血糖]]","v":190},{"$f":"IFERROR(IF(BloodPressureAndGlucose[[#This Row],[水平]]=0,\"\",IF(BloodPressureAndGlucose[[#This Row],[水平]]<=GLow,\"低\",IF(AND(BloodPressureAndGlucose[[#This Row],[水平]]>GLow,BloodPressureAndGlucose[[#This Row],[水平]]<GHigh),\"正常\",\"高\"))), \"\")","v":"高"}]
[null,"2018-07-04","12:00:00","餐前",141,84,70,140,{"$f":"BloodPressureAndGlucose[[#This Row],[血糖]]","v":140},{"$f":"IFERROR(IF(BloodPressureAndGlucose[[#This Row],[水平]]=0,\"\",IF(BloodPressureAndGlucose[[#This Row],[水平]]<=GLow,\"低\",IF(AND(BloodPressureAndGlucose[[#This Row],[水平]]>GLow,BloodPressureAndGlucose[[#This Row],[水平]]<GHigh),\"正常\",\"高\"))), \"\")","v":"正常"}]
[null,{"$f":"TODAY()","v":"2018-07-04"},"15:00:00","餐后",132,80,68,90,{"$f":"BloodPressureAndGlucose[[#This Row],[血糖]]","v":90},{"$f":"IFERROR(IF(BloodPressureAndGlucose[[#This Row],[水平]]=0,\"\",IF(BloodPressureAndGlucose[[#This Row],[水平]]<=GLow,\"低\",IF(AND(BloodPressureAndGlucose[[#This Row],[水平]]>GLow,BloodPressureAndGlucose[[#This Row],[水平]]<GHigh),\"正常\",\"高\"))), \"\")","v":"正常"},"就餐时服用降压药"]
[null,"平均值",null,null,{"$f":"SUBTOTAL(101,BloodPressureAndGlucose[收缩压])","v":133},{"$f":"SUBTOTAL(101,BloodPressureAndGlucose[舒张压])","v":{"v":82.33333333333333,"d":"82"}},{"$f":"SUBTOTAL(101,BloodPressureAndGlucose[心率])","v":{"v":72.33333333333333,"d":"72"}},{"$f":"SUBTOTAL(101,BloodPressureAndGlucose[血糖])","v":{"v":103.33333333333333,"d":"103"}}]